bitfinex/quotes_SOLUSD_20250818
["timestamp","ask_amount","ask_price","bid_price","bid_amount"]
[1755526648271,13.50544638,181.77,181.76,48.46169945]
[1755526648567,13.50544638,181.77,181.76,71.06169945]
[1755526649344,13.50544638,181.77,181.76,71.09169945]
[1755526650068,13.50544638,181.77,181.76,22.63]
[1755526651139,5.4999558,181.82,181.76,28.13176056]
[1755526651346,13.50544638,181.77,181.76,28.13176056]
[1755526651869,5.4999558,181.82,181.76,22.63]
[1755526652071,13.50544638,181.77,181.76,22.63]
[1755526652240,1e-08,181.83,181.76,28.13170393]
[1755526652441,13.50544638,181.79,181.76,28.13170393]
[1755526653152,1e-08,181.83,181.76,28.13170393]
[1755526653456,1e-08,181.83,181.77,58.06621557]
[1755526653769,13.50544638,181.81,181.77,80.66621557]
[1755526653974,13.50544638,181.8,181.77,97.20288557]
[1755526655445,13.50544638,181.8,181.78,5.50115524]
[1755526655643,1e-08,181.83,181.78,19.25404334]
[1755526655849,13.50544638,181.82,181.78,19.25404334]
[1755526656046,1e-08,181.83,181.79,28.61166195]
[1755526656265,1e-08,181.83,181.8,42.94]
[1755526656464,1e-08,181.83,181.8,65.54]
[1755526657557,1e-08,181.83,181.81,5.50024751]
[1755526657873,13.50544639,181.83,181.81,5.50024751]
[1755526658080,13.50544638,181.82,181.8,28.10051333]
[1755526658284,13.50544638,181.81,181.8,28.10051333]
[1755526659468,13.50544638,181.81,181.8,22.6]
[1755526659667,19.00569389,181.81,181.8,22.6]
[1755526659893,13.50544638,181.81,181.8,22.6]
[1755526660198,23.03653152,181.81,181.8,22.6]
[1755526660373,23.03653152,181.81,181.76,22.63]
[1755526660692,13.50544638,181.77,181.76,28.13175133]
[1755526661188,26.0,181.81,181.76,28.13175133]
[1755526661396,13.50544638,181.78,181.76,28.13175133]
[1755526662278,13.50544638,181.77,181.76,28.13175133]
[1755526663309,13.50544638,181.77,181.76,0.03]
[1755526663905,17.53943061,181.77,181.76,0.03]
[1755526664201,17.53968588,181.77,181.76,0.03]
[1755526666082,4.0342395,181.77,181.76,0.03]
[1755526666261,13.50544638,181.77,181.76,0.03]
[1755526666465,17.53968588,181.77,181.76,0.03]
[1755526666780,13.50544638,181.77,181.76,0.03]
[1755526667319,3.63586131,181.82,181.76,0.03]
[1755526667491,13.50544638,181.78,181.76,0.03]
[1755526667886,13.50544638,181.77,181.76,0.03]
[1755526668413,17.54759105,181.77,181.76,0.03]
[1755526670199,23.04804449,181.77,181.76,0.03]
[1755526670381,26.68594254,181.77,181.76,0.03]
[1755526670585,21.18448466,181.77,181.76,0.03]
[1755526670889,26.68594254,181.77,181.76,0.03]
[1755526672321,21.18448466,181.77,181.76,0.03]
[1755526673120,21.18496224,181.77,181.76,0.03]
[1755526673890,21.18501873,181.77,181.76,0.03]
[1755526674503,13.50544638,181.77,181.76,0.03]
[1755526675215,13.50544638,181.78,181.76,0.03]
[1755526675399,56.40544638,181.79,181.76,26.03]
[1755526675595,1e-08,181.83,181.76,26.03]
[1755526675596,13.50544638,181.8,181.76,22.63]
[1755526675806,42.90000001,181.83,181.76,22.63]
[1755526676019,13.50544638,181.8,181.77,5.50145788]
[1755526676315,8.6776632,181.8,181.77,5.50145788]
[1755526676987,51.57766321,181.83,181.77,50.53276579]
[1755526677191,42.90000001,181.83,181.78,34.6776632]
[1755526677397,1e-08,181.83,181.78,26.0]
[1755526677598,1e-08,181.83,181.79,8.6776632]
[1755526677894,1e-08,181.83,181.78,77.5576632]
[1755526678105,1e-08,181.83,181.79,27.93064741]
[1755526678302,1e-08,181.83,181.79,32.74457737]
[1755526678615,1e-08,181.83,181.8,13.49159316]
[1755526678790,1e-08,181.83,181.8,36.09159316]
[1755526679625,1e-08,181.83,181.8,22.6]
[1755526680215,1e-08,181.83,181.81,5.50024751]
[1755526680517,1e-08,181.83,181.8,22.6]
[1755526680518,13.49159316,181.82,181.8,28.10046772]
[1755526680720,13.49159316,181.81,181.8,28.10046772]
[1755526681686,13.49159316,181.81,181.8,22.6]
[1755526681922,1e-08,181.83,181.8,28.10049559]
[1755526682105,13.49159317,181.83,181.8,28.10049559]
[1755526682513,1e-08,181.83,181.8,28.10049559]
[1755526683209,13.49159317,181.83,181.8,28.10049559]
[1755526683997,1e-08,181.83,181.8,41.59208959]
[1755526685320,1e-08,181.83,181.81,42.84]
[1755526685504,1e-08,181.83,181.82,13.49159316]
[1755526685706,1e-08,181.83,181.82,36.09159316]
[1755526685904,1e-08,181.83,181.82,41.59153816]
[1755526686612,1e-08,181.83,181.82,28.099945]
[1755526687823,1e-08,181.83,181.82,43.79594116]
[1755526688047,0.06,181.85,181.82,58.90215673]
[1755526688215,0.06,181.85,181.83,15.10621557]
[1755526688527,0.06,181.86,181.84,56.33159316]
[1755526688829,0.06,181.86,181.84,65.44]
[1755526689416,0.06,181.86,181.84,22.6]
[1755526689617,0.06,181.86,181.85,42.82]
[1755526690224,0.06,181.86,181.85,48.31903766]
[1755526690750,13.55159316,181.86,181.85,5.49903766]
[1755526691251,13.55159316,181.86,181.83,5.49964252]
[1755526691543,13.49159316,181.84,181.83,5.49964252]
[1755526692110,0.06,181.86,181.82,5.499945]
[1755526692341,13.49159316,181.83,181.8,13.551593]
[1755526692543,13.49159316,181.81,181.77,42.82]
[1755526692718,13.49159316,181.78,181.76,13.7840871]
[1755526693067,13.49159316,181.79,181.76,13.7840871]
[1755526693339,13.49159316,181.8,181.76,13.7840871]
[1755526693510,3.69973345,181.86,181.76,32.77744082]
[1755526693712,4.04354914,181.85,181.77,15.10621557]
[1755526693939,13.49159316,181.83,181.78,42.8]
[1755526694118,0.06,181.86,181.78,42.8]
[1755526694324,13.49159316,181.85,181.79,13.49159316]
[1755526694633,0.06,181.86,181.79,15.10621557]
[1755526694835,13.55159316,181.86,181.8,15.10621557]
[1755526695015,0.06,181.86,181.82,13.49159316]
[1755526695217,13.55159316,181.86,181.81,42.8]
[1755526695417,0.06,181.86,181.81,42.8]
[1755526695618,13.49159316,181.83,181.82,5.499945]
[1755526695833,0.06,181.86,181.82,5.499945]
[1755526696037,13.49159316,181.83,181.8,5.50055005]
[1755526696267,13.49159316,181.81,181.76,42.83]
[1755526696421,13.49159316,181.79,181.76,42.83]
[1755526696834,13.49159316,181.79,181.77,5.50145788]
[1755526697036,13.49159316,181.78,181.76,48.33172573]
[1755526697338,26.0,181.83,181.76,48.33172573]
[1755526697339,13.49159316,181.77,181.76,0.03]
[1755526698865,26.0,181.8,181.76,0.03]
[1755526699054,13.49159316,181.77,181.76,0.03]
[1755526700267,31.50065099,181.8,181.76,0.03]
[1755526700474,26.0,181.78,181.76,0.03]
[1755526700670,13.49159316,181.77,181.76,0.03]
[1755526700850,13.49159316,181.8,181.76,0.03]
[1755526701569,13.49159316,181.79,181.76,0.03]
[1755526701755,13.49159316,181.77,181.76,0.03]
[1755526701965,31.55970955,181.83,181.76,0.03]
[1755526702142,13.49159316,181.77,181.76,0.03]
[1755526702469,13.49159316,181.78,181.76,0.03]
[1755526702769,26.0,181.81,181.76,0.03]
[1755526702963,13.49159316,181.81,181.76,13.52159316]
[1755526703147,0.06,181.83,181.76,13.52159316]
[1755526703356,13.49159316,181.82,181.76,13.52159316]
[1755526703757,0.06,181.83,181.76,0.03]
[1755526704068,13.49159316,181.81,181.76,0.03]
[1755526704656,0.06,181.83,181.76,0.03]
[1755526704980,0.06,181.83,181.76,5.53176056]
[1755526705144,0.06,181.83,181.77,13.49159316]
[1755526705338,0.06,181.83,181.77,15.10621557]
[1755526705573,0.06,181.83,181.82,13.49159316]
[1755526705768,0.06,181.83,181.81,13.49159316]
[1755526705981,0.06,181.83,181.8,56.25159316]
[1755526706283,0.06,181.83,181.8,42.76]
[1755526706475,0.06,181.83,181.77,42.76]
[1755526706768,13.55159316,181.83,181.78,5.50115524]
[1755526706944,13.49159316,181.82,181.78,5.50115524]
[1755526707869,13.49159316,181.81,181.78,5.50115524]
[1755526708047,13.49159316,181.82,181.78,5.50115524]
[1755526708654,13.49159316,181.81,181.78,5.50115524]
[1755526709169,0.06,181.83,181.78,5.50115524]
[1755526709369,13.49159316,181.79,181.78,5.50115524]
[1755526709545,0.06,181.83,181.78,5.50115524]
[1755526709751,13.55159316,181.83,181.78,19.25404334]
[1755526710171,13.55159316,181.83,181.78,32.7456365]
[1755526710475,13.49159316,181.79,181.77,5.50140356]
[1755526710773,26.06,181.83,181.77,5.50140356]
[1755526710975,26.06,181.83,181.76,0.03]
[1755526711360,0.06,181.83,181.76,0.03]
[1755526711577,13.49159316,181.8,181.76,0.03]
[1755526711787,13.49159316,181.79,181.76,0.03]
[1755526711980,13.49159316,181.78,181.76,0.03]
[1755526712379,0.06,181.83,181.76,0.03]
[1755526712692,4.10558743,181.83,181.76,0.03]
[1755526713398,26.0,181.82,181.76,0.03]
[1755526713874,39.49159316,181.82,181.76,0.03]
[1755526714065,13.49159316,181.81,181.76,13.52159316]
[1755526714754,13.49159316,181.81,181.76,0.03]
[1755526714953,13.49159316,181.8,181.76,0.03]
[1755526715153,13.49159316,181.79,181.76,0.03]
[1755526715466,26.0,181.82,181.76,0.03]
[1755526716159,13.49159316,181.8,181.76,0.03]
[1755526717171,13.49159316,181.79,181.76,22.63]
[1755526717361,26.0,181.82,181.76,22.63]
[1755526718058,13.49159316,181.8,181.77,5.50145788]
[1755526718270,13.49159316,181.78,181.77,22.6]
[1755526719288,3.64409149,181.81,181.76,0.03]
[1755526719515,4.04976354,181.8,181.76,0.03]
[1755526719655,26.0,181.81,181.76,5.53166676]
[1755526719854,13.49159316,181.79,181.76,5.53166676]
[1755526720057,13.49159316,181.78,181.76,0.03]
[1755526720374,26.0,181.82,181.76,0.03]
[1755526720709,13.49159316,181.79,181.76,0.03]
[1755526720862,13.49159316,181.8,181.76,0.03]
[1755526721068,13.49159316,181.81,181.76,0.03]
[1755526721274,13.49159316,181.81,181.76,13.52159316]
[1755526721793,0.06,181.83,181.76,13.52159316]
[1755526721794,0.06,181.83,181.78,13.49159316]
[1755526722089,13.55159316,181.83,181.79,5.50085263]
[1755526722281,0.06,181.83,181.79,5.50085263]
[1755526722476,0.06,181.83,181.79,18.99244579]
[1755526722689,0.06,181.83,181.79,5.50085263]
[1755526723263,13.55159316,181.83,181.79,5.50085263]
[1755526723461,0.06,181.83,181.79,5.50085263]
[1755526724086,13.55159316,181.83,181.78,18.9927484]
[1755526724285,0.06,181.83,181.78,18.9927484]
[1755526724462,13.49159316,181.81,181.78,5.50115524]
[1755526724860,13.49159316,181.8,181.76,5.5315123]
[1755526725064,13.49159316,181.79,181.76,5.5315123]
[1755526725274,26.06,181.83,181.76,5.5315123]
[1755526725487,7.69336185,181.82,181.76,5.5315123]
[1755526725677,4.04921068,181.81,181.76,5.5315123]
[1755526726060,4.04921068,181.81,181.76,0.03]
[1755526726663,13.49159316,181.8,181.76,0.03]
[1755526727568,68.78,181.83,181.76,0.03]
[1755526727877,13.49159316,181.8,181.76,0.03]
[1755526728284,68.78,181.83,181.76,13.52159316]
[1755526728487,17.53879729,181.82,181.76,13.52159316]
[1755526728696,13.49159316,181.8,181.76,0.03]
[1755526729481,13.49159316,181.79,181.76,0.03]
[1755526729795,13.49159316,181.77,181.76,0.03]
[1755526730400,8.68269865,181.77,181.76,0.03]
[1755526730627,27.83329108,181.77,181.76,0.03]
[1755526730771,34.68269865,181.75,181.74,0.03]
[1755526731099,38.72707551,181.75,181.74,0.03]
[1755526732083,44.22913878,181.75,181.74,0.03]
[1755526732290,49.06000318,181.75,181.74,0.03]
[1755526732499,45.01562632,181.75,181.74,0.03]
[1755526732683,49.05629427,181.75,181.74,0.03]
[1755526733288,41.79822867,181.75,181.74,0.03]
[1755526733486,39.51356305,181.73,181.71,0.03]
[1755526733676,15.10621557,181.72,181.71,0.03]
[1755526733881,26.0,181.69,181.65,0.03]
[1755526734209,39.51356305,181.66,181.65,0.03]
[1755526734439,82.21356305,181.66,181.65,0.03]
[1755526735707,68.7,181.66,181.65,0.03]
[1755526736025,82.21356305,181.66,181.65,0.03]
[1755526736208,68.7,181.66,181.65,0.03]
[1755526736526,82.21356305,181.66,181.65,0.03]
[1755526737353,68.7,181.66,181.65,0.03]
[1755526737503,82.21356305,181.66,181.65,0.03]
[1755526738434,56.21356305,181.66,181.65,0.03]
[1755526740736,42.7,181.66,181.65,0.03]
[1755526740930,56.21356305,181.66,181.65,0.03]
[1755526741840,61.71835221,181.66,181.65,0.03]
[1755526742030,15.10621557,181.65,181.64,0.03]
[1755526742238,36.26623793,181.65,181.64,0.03]
[1755526742527,32.64518167,181.65,181.64,0.03]
[1755526742730,24.63671083,181.65,181.64,0.03]
[1755526743039,38.15027388,181.65,181.64,0.03]
[1755526743619,41.10621557,181.63,181.62,0.03]
[1755526743838,101.36518167,181.63,181.62,0.03]
[1755526744412,26.0,181.6,181.59,0.03]
[1755526744610,82.23356305,181.6,181.59,0.03]
[1755526744843,91.75157895,181.6,181.59,0.03]
[1755526745418,87.74017097,181.6,181.59,0.03]
[1755526745616,102.84638654,181.6,181.59,0.03]
[1755526747024,82.23356305,181.6,181.59,0.03]
[1755526747928,68.72,181.6,181.59,0.03]
[1755526748121,56.23356305,181.6,181.59,0.03]
[1755526749129,42.72,181.6,181.59,0.03]
[1755526749326,56.23356305,181.6,181.59,0.03]
[1755526750538,61.74017097,181.6,181.59,0.03]
[1755526751324,56.23356305,181.6,181.59,0.03]
[1755526751543,61.74017097,181.6,181.59,0.03]
[1755526752045,56.23356305,181.6,181.59,0.03]
[1755526752248,82.23356305,181.6,181.59,0.03]
[1755526754357,77.41715148,181.6,181.59,0.03]
[1755526756935,82.9237594,181.6,181.59,0.03]
[1755526757556,77.41715148,181.6,181.59,0.03]
[1755526758252,81.40867506,181.6,181.59,0.03]
[1755526758844,86.91551083,181.6,181.59,0.03]
[1755526760135,76.0217264,181.6,181.59,0.03]
[1755526760335,41.10621557,181.59,181.58,0.03]
[1755526760534,26.0,181.58,181.57,0.2]
[1755526760737,81.38890291,181.58,181.57,0.2]
[1755526760960,95.59326884,181.58,181.55,0.03]
[1755526761144,43.39430296,181.56,181.55,0.03]
[1755526761329,90.08605439,181.56,181.55,0.03]
[1755526763457,95.59387549,181.56,181.55,0.03]
[1755526763861,84.70009106,181.56,181.55,0.03]
[1755526764037,34.69715148,181.54,181.53,0.2]
[1755526764240,81.36890291,181.54,181.49,0.03]
[1755526764436,3.99175143,181.53,181.49,0.03]
[1755526764642,12.68890291,181.53,181.49,0.03]
[1755526764843,81.36890291,181.53,181.49,0.03]
[1755526765043,81.366114,181.53,181.49,0.03]
[1755526767050,86.87484533,181.53,181.49,0.03]
[1755526767870,86.87777394,181.53,181.49,0.03]
[1755526768067,86.87804768,181.53,181.49,0.03]
[1755526768652,86.87997657,181.53,181.49,0.03]
[1755526768866,78.18282509,181.53,181.49,0.03]
[1755526769062,86.87997657,181.53,181.49,0.03]
[1755526770338,101.98619214,181.53,181.49,0.03]
[1755526770541,86.87997657,181.53,181.49,0.03]
[1755526770763,26.0,181.5,181.49,0.03]
[1755526771067,81.37124524,181.5,181.49,0.03]
[1755526772064,86.88088711,181.5,181.49,0.03]
[1755526774044,38.69124524,181.5,181.49,0.03]
[1755526774255,81.35124524,181.5,181.49,0.03]
[1755526774472,38.69124524,181.5,181.49,0.03]
[1755526774968,81.35124524,181.5,181.49,0.03]
[1755526775666,86.86088711,181.5,181.49,0.03]
[1755526777172,90.46999679,181.5,181.49,0.03]
[1755526777473,86.86945698,181.5,181.49,0.03]
[1755526777658,86.87090909,181.5,181.49,0.03]
[1755526778187,84.9624227,181.5,181.49,0.03]
[1755526778544,38.70126722,181.5,181.49,0.03]
[1755526778744,81.36126722,181.5,181.49,0.03]
[1755526779775,86.87090909,181.5,181.49,0.03]
[1755526780161,90.47140123,181.5,181.49,0.03]
[1755526780355,90.47207364,181.5,181.45,0.03]
[1755526780666,8.69715148,181.46,181.45,0.03]
[1755526780871,46.64478815,181.46,181.45,0.03]
[1755526781060,55.34193963,181.46,181.45,0.03]
[1755526783210,4.00478815,181.46,181.45,0.03]
[1755526783357,46.64478815,181.46,181.45,0.03]
[1755526783550,55.34193963,181.46,181.45,0.03]
[1755526786267,55.3431523,181.46,181.45,0.03]
[1755526786568,12.7031523,181.46,181.45,0.03]
[1755526786884,55.3231523,181.46,181.45,0.03]
[1755526787581,12.70365178,181.46,181.45,0.03]
[1755526787758,55.32365178,181.46,181.45,0.03]
[1755526789271,46.6265003,181.46,181.45,0.03]
[1755526789579,55.32365178,181.46,181.45,0.03]
[1755526791769,46.6265003,181.46,181.45,0.03]
[1755526791981,55.32365178,181.46,181.45,0.03]
[1755526792487,51.31715148,181.46,181.45,0.03]
[1755526792689,2.8760888,181.52,181.45,0.03]
[1755526792862,4.00436608,181.51,181.45,0.03]
[1755526793072,8.69715148,181.49,181.45,0.03]
[1755526793982,8.69715148,181.47,181.45,0.03]
[1755526794182,8.69715148,181.46,181.45,0.03]
[1755526797301,51.27715148,181.46,181.45,0.03]
[1755526798872,55.28750258,181.46,181.45,0.03]
[1755526799309,58.90449489,181.46,181.45,0.03]
[1755526799510,64.41535127,181.46,181.45,0.03]
[1755526799689,64.41535127,181.46,181.43,0.03]
[1755526799690,73.11250275,181.46,181.43,0.03]
[1755526799891,17.39430296,181.44,181.43,0.03]
[1755526800087,34.69715148,181.42,181.41,0.03]
[1755526800287,84.88449489,181.42,181.41,0.03]
[1755526800510,90.39656632,181.42,181.41,0.03]
[1755526801602,90.39656632,181.42,181.39,0.03]
[1755526801603,15.10621557,181.41,181.39,0.03]
[1755526801905,26.0,181.37,181.3,5.51569341]
[1755526802133,34.69715148,181.34,181.31,5.51541257]
[1755526802295,77.25715148,181.34,181.3,5.51565083]
[1755526802804,77.25715148,181.34,181.31,5.51536377]
[1755526803404,77.25715148,181.34,181.32,5.51504042]
[1755526803405,68.56,181.34,181.32,5.51504042]
[1755526803599,8.69715148,181.36,181.33,5.71478749]
[1755526803787,42.56,181.37,181.33,5.71478749]
[1755526803994,8.69715148,181.36,181.33,5.71478749]
[1755526804205,8.69715148,181.34,181.33,5.71478749]
[1755526804404,42.56,181.38,181.33,5.71478749]
[1755526804606,8.69715148,181.35,181.33,5.71478749]
[1755526804818,8.69715148,181.37,181.33,5.71478749]
[1755526805019,8.69715148,181.38,181.33,28.19895711]
[1755526805223,42.56,181.4,181.34,8.69715148]
[1755526805399,42.56,181.4,181.33,42.10180563]
[1755526805400,51.25715148,181.4,181.33,42.10180563]
[1755526805600,51.25715148,181.4,181.36,5.51389501]
[1755526805808,42.56,181.4,181.36,5.51389501]
[1755526806006,8.69715148,181.39,181.36,5.51389501]
[1755526806298,8.69715148,181.41,181.36,5.51389501]
[1755526806625,8.69715148,181.4,181.36,5.51389501]
[1755526807129,8.69715148,181.39,181.36,5.51389501]
[1755526807625,26.06,181.44,181.38,8.69715148]
[1755526807806,0.06,181.44,181.4,8.69715148]
[1755526808002,0.06,181.44,181.39,8.69715148]
[1755526808204,8.75715148,181.44,181.38,8.69715148]
[1755526808623,8.69715148,181.43,181.36,15.10621557]
[1755526808798,8.69715148,181.43,181.38,8.69715148]
[1755526810138,8.69715148,181.43,181.39,5.51298307]
[1755526812342,8.69715148,181.43,181.38,8.69715148]
[1755526812841,0.06,181.44,181.38,8.69715148]
[1755526813148,0.06,181.44,181.37,19.2975685]
[1755526813149,0.06,181.44,181.4,8.69715148]
[1755526813348,0.06,181.44,181.38,15.10621557]
[1755526813650,0.06,181.44,181.39,8.69715148]
[1755526814244,0.06,181.44,181.4,8.69715148]
[1755526814552,0.06,181.44,181.39,19.29544075]
[1755526814731,0.06,181.44,181.4,8.69715148]
[1755526815111,0.06,181.44,181.39,19.29544075]
[1755526815442,0.06,181.44,181.4,8.69715148]
[1755526816049,8.75715148,181.44,181.39,19.29544075]
[1755526816357,8.69715148,181.43,181.39,19.29544075]
[1755526816645,8.75715148,181.44,181.39,19.29544075]
[1755526817020,8.69715148,181.43,181.39,19.29544075]
[1755526818350,8.75715148,181.43,181.39,19.29544075]
[1755526818760,8.69715148,181.42,181.39,19.29544075]
[1755526819448,0.06,181.43,181.39,27.99259223]
[1755526819955,0.06,181.43,181.42,8.69715148]
[1755526820122,0.06,181.43,181.42,23.80336705]
[1755526820323,0.06,181.44,181.42,15.10621557]
[1755526820523,0.06,181.44,181.43,5.51176762]
[1755526820951,0.06,181.44,181.43,14.2089191]
[1755526821139,1e-08,181.44,181.43,51.91513467]
[1755526821537,1e-08,181.44,181.43,43.21798319]
[1755526821736,1e-08,181.44,181.43,51.91513467]
[1755526822122,1e-08,181.44,181.43,43.21798319]
[1755526822327,1e-08,181.44,181.43,51.91513467]
[1755526822559,1e-08,181.44,181.43,43.21798319]
[1755526822852,1e-08,181.44,181.43,51.91513467]
[1755526823031,1e-08,181.44,181.43,77.91513467]
[1755526823432,1e-08,181.44,181.43,80.12416367]
[1755526825846,1e-08,181.44,181.43,71.42701219]
[1755526826237,1e-08,181.44,181.43,80.12416367]
[1755526827053,0.06,181.46,181.45,37.70621556]
[1755526827372,0.06,181.46,181.45,88.88336704]
[1755526827726,1e-08,181.46,181.45,88.88336704]
[1755526828565,1e-08,181.49,181.48,41.10621557]
[1755526828741,1e-08,181.49,181.48,83.56621557]
[1755526828942,1e-08,181.49,181.48,97.77361611]
[1755526829141,0.06,181.51,181.49,15.10621557]
[1755526829341,0.06,181.51,181.5,23.80336705]
[1755526830053,0.06,181.51,181.5,15.10621557]
[1755526830430,0.06,181.51,181.48,47.97024906]
[1755526830632,8.69715148,181.5,181.48,5.51024906]
[1755526830848,8.69715148,181.49,181.48,5.51024906]
[1755526831056,8.75715148,181.51,181.48,5.51024906]
[1755526831260,0.06,181.51,181.48,5.51024906]
[1755526831439,0.06,181.51,181.49,8.757152]
[1755526832571,0.06,181.51,181.5,5.50964187]
[1755526833164,8.75715148,181.51,181.5,5.50964187]
[1755526833464,8.75715148,181.51,181.48,5.51002034]
[1755526833667,0.06,181.51,181.45,5.51116009]
[1755526833964,8.69715148,181.48,181.47,8.757151]
[1755526834673,8.69715148,181.48,181.46,5.51061726]
[1755526834972,8.69715148,181.48,181.41,13.7805425]
[1755526834973,8.69715148,181.47,181.45,16.568635]
[1755526835274,8.69715148,181.46,181.45,16.568635]
[1755526835438,8.69715148,181.46,181.4,5.51267916]
[1755526835869,8.69715148,181.41,181.4,22.08680716]
[1755526836160,8.69715148,181.42,181.4,22.08680716]
[1755526836548,8.69715148,181.41,181.4,22.08680716]
[1755526837172,8.69715148,181.41,181.4,5.51267916]
[1755526837660,8.69715148,181.42,181.4,5.51267916]
[1755526837866,26.0,181.48,181.4,5.51267916]
[1755526838041,8.69715148,181.43,181.4,5.51267916]
[1755526838658,8.69715148,181.45,181.4,14.20983064]
[1755526838873,8.69715148,181.46,181.4,56.62983064]
[1755526839537,8.69715148,181.47,181.42,5.51207143]
[1755526839970,8.69715148,181.47,181.42,19.29225002]
[1755526840267,8.69715148,181.5,181.44,8.69715148]
[1755526841064,8.75715148,181.51,181.46,8.69715148]
[1755526841264,0.06,181.51,181.46,31.29715148]
[1755526841644,8.75715148,181.51,181.46,22.6]
[1755526841967,8.75715148,181.51,181.47,5.5105527]
[1755526842664,0.06,181.51,181.48,8.69715148]
[1755526843371,0.06,181.51,181.49,8.69715148]
[1755526843963,0.06,181.51,181.5,7.71818287]
[1755526844268,0.06,181.51,181.5,30.31818287]
[1755526844576,0.06,181.51,181.5,45.42439844]
[1755526844768,0.06,181.51,181.5,31.52154992]
[1755526845471,0.06,181.53,181.51,15.10621557]
[1755526845797,0.06,181.53,181.52,23.80336705]
[1755526845951,0.06,181.53,181.52,29.31240186]
[1755526846668,0.06,181.54,181.53,15.10621557]
[1755526846969,1e-08,181.54,181.53,37.70621557]
[1755526847200,1e-08,181.54,181.53,46.40336705]
[1755526848075,1e-08,181.54,181.53,51.91209838]
[1755526848671,1e-08,181.54,181.53,43.2149469]
[1755526848874,1e-08,181.54,181.53,51.91209838]
[1755526850204,1e-08,181.54,181.53,94.29209838]
[1755526850372,1e-08,181.54,181.53,87.8027569]
[1755526850578,1e-08,181.54,181.53,96.49990838]
[1755526851085,1e-08,181.54,181.53,96.52990838]
[1755526856000,1e-08,181.54,181.53,73.92990838]
[1755526856499,1e-08,181.54,181.53,65.2327569]
[1755526856704,1e-08,181.54,181.53,73.92990838]
[1755526860317,1e-08,181.54,181.53,17.34402557]
[1755526860529,1e-08,181.54,181.53,0.03]
[1755526860711,1e-08,181.54,181.53,42.33]
[1755526860899,8.69715149,181.54,181.53,42.33]
[1755526861295,8.69715149,181.54,181.53,47.83873133]
[1755526862106,8.69715149,181.54,181.53,70.43873133]
[1755526862291,8.69715149,181.54,181.53,64.93]
[1755526862705,1e-08,181.54,181.53,64.93]
[1755526862898,8.69715149,181.54,181.53,64.93]
[1755526865530,1e-08,181.54,181.53,70.43873133]
[1755526865850,8.69715149,181.54,181.53,70.43873133]
[1755526866040,1e-08,181.54,181.53,70.43873133]
[1755526866325,1e-08,181.54,181.53,85.5449469]
[1755526866483,1e-08,181.54,181.53,94.24209838]
[1755526867101,1e-08,181.55,181.54,15.10621557]
[1755526867312,1e-08,181.56,181.54,23.80336705]
[1755526867498,0.06,181.58,181.56,15.10621557]
[1755526867809,0.06,181.58,181.57,66.06336705]
[1755526868110,0.06,181.58,181.57,62.87373333]
[1755526868513,0.06,181.58,181.57,71.57088481]
[1755526868814,0.06,181.58,181.57,20.61373333]
[1755526868981,0.06,181.58,181.57,62.87373333]
[1755526869917,0.06,181.58,181.57,71.57088481]
[1755526870421,0.2,181.62,181.58,15.10621557]
[1755526870625,0.2,181.62,181.59,50.93715148]
[1755526871005,0.2,181.62,181.61,23.80336705]
[1755526871200,0.2,181.62,181.61,66.04336705]
[1755526872022,0.2,181.62,181.61,62.85252028]
[1755526873732,8.89715148,181.62,181.61,62.85252028]
[1755526874245,0.2,181.62,181.61,62.85252028]
[1755526875544,8.89715148,181.62,181.61,62.85252028]
[1755526875848,8.89715148,181.62,181.54,13.77072657]
[1755526876024,8.69715148,181.58,181.55,62.83434005]
[1755526876219,8.69715148,181.59,181.55,71.73149105]
[1755526877041,8.69715148,181.56,181.55,62.83434005]
[1755526877250,8.69715148,181.56,181.55,20.61434005]
[1755526877543,8.69715148,181.56,181.55,42.2]